bitfinex/quotes_SOLUSD_20241103
["timestamp","ask_amount","ask_price","bid_price","bid_amount"]
[1730668975592,16.54216127,163.54,163.51,15.2895]
[1730668976077,16.54216127,163.53,163.51,15.2895]
[1730668977476,10.59060943,163.53,163.51,15.2895]
[1730668979459,10.59060943,163.54,163.51,15.2895]
[1730668979958,10.59060943,163.53,163.51,15.2895]
[1730668980876,11.68936654,163.52,163.51,15.2895]
[1730668981056,10.59060943,163.53,163.51,15.2895]
[1730668981669,10.59060943,163.54,163.51,15.2895]
[1730668982878,0.12549,163.55,163.51,15.2895]
[1730668983179,23.902374,163.55,163.51,15.2895]
[1730668983383,13.8598962,163.54,163.51,18.64630743]
[1730668983562,10.59060943,163.56,163.51,18.64630743]
[1730668984081,10.59060943,163.56,163.51,15.2895]
[1730668984279,13.85001515,163.55,163.51,18.6537748]
[1730668984463,10.59060943,163.56,163.51,18.6537748]
[1730668984883,10.59060943,163.6,163.54,10.59060943]
[1730668985093,16.62850943,163.61,163.55,10.59060943]
[1730668985464,0.12549,163.6,163.55,10.59060943]
[1730668985677,23.5159603,163.6,163.54,10.59060943]
[1730668985884,10.59060943,163.6,163.54,10.59060943]
[1730668986182,23.776884,163.59,163.54,10.59060943]
[1730668986679,23.776884,163.59,163.55,31.99070943]
[1730668987259,10.59060943,163.64,163.58,10.59060943]
[1730668987569,10.59060943,163.64,163.59,10.59060943]
[1730668988070,10.59060943,163.64,163.58,10.59060943]
[1730668988270,10.59060943,163.66,163.61,10.59060943]
[1730668988591,10.59060943,163.66,163.62,6.1117]
[1730668988765,10.59060943,163.66,163.62,21.391]
[1730668989280,10.59060943,163.67,163.62,31.98160943]
[1730668989487,10.59060943,163.65,163.62,15.2793]
[1730668989683,10.59060943,163.63,163.59,21.3948]
[1730668990062,70.12549,163.67,163.59,21.3948]
[1730668990063,10.59060943,163.64,163.59,21.3948]
[1730668990263,23.776884,163.64,163.59,31.98540943]
[1730668990575,34.36749343,163.66,163.61,21.3922]
[1730668990884,34.36749343,163.66,163.61,31.98280943]
[1730668991262,34.36749343,163.66,163.61,21.3922]
[1730668991676,10.59060943,163.62,163.59,6.1126]
[1730668991900,10.59060943,163.63,163.59,21.3947]
[1730668992066,13.08120666,163.62,163.59,21.3947]
[1730668992273,10.59060943,163.63,163.59,21.3947]
[1730668992491,10.59060943,163.63,163.59,15.2821]
[1730668992679,10.59060943,163.64,163.59,15.2821]
[1730668992988,10.59060943,163.65,163.6,10.59060943]
[1730668993198,10.59060943,163.66,163.6,10.59060943]
[1730668993406,13.58926128,163.65,163.6,10.59060943]
[1730668993585,10.59060943,163.61,163.56,21.3986]
[1730668993893,0.12549,163.63,163.56,21.3986]
[1730668993894,10.59060943,163.6,163.56,21.3986]
[1730668994096,10.59060943,163.6,163.57,2.0988596]
[1730668994292,10.59060943,163.6,163.56,21.3986]
[1730668994674,10.59060943,163.6,163.56,15.2847]
[1730668995100,10.59060943,163.58,163.54,6.1147]
[1730668995903,10.59060943,163.59,163.54,21.4014]
[1730668996372,10.59060943,163.58,163.54,15.2867]
[1730668996580,10.59060943,163.56,163.51,15.2894]
[1730668996887,10.59060943,163.53,163.51,15.2894]
[1730668997090,34.49298343,163.52,163.47,24.77097377]
[1730668997286,16.55120659,163.51,163.49,2.10127469]
[1730668997488,40.45358059,163.52,163.49,2.10127469]
[1730668997699,16.55120659,163.51,163.49,2.10127469]
[1730668998601,0.12549,163.49,163.48,2.17597839]
[1730668998899,40.45358059,163.49,163.48,0.0747037]
[1730668999106,16.55120659,163.51,163.48,0.0747037]
[1730668999284,23.01410659,163.53,163.48,0.0747037]
[1730668999485,23.776884,163.52,163.48,0.0747037]
[1730668999674,16.55120659,163.53,163.48,0.0747037]
[1730668999876,23.776884,163.52,163.48,16.62591029]
[1730669000095,40.32809059,163.55,163.49,16.55120659]
[1730669000285,23.776884,163.54,163.49,16.55120659]
[1730669000491,16.55120659,163.55,163.49,16.55120659]
[1730669000678,32.13450659,163.56,163.5,16.55120659]
[1730669000885,16.55120659,163.56,163.51,37.95650659]
[1730669001084,16.55120659,163.58,163.52,16.55120659]
[1730669001407,0.12549,163.57,163.52,16.55120659]
[1730669001903,23.902374,163.57,163.52,16.55120659]
[1730669002400,23.776884,163.56,163.53,6.115]
[1730669002702,23.776884,163.56,163.53,21.4027]
[1730669002997,16.55120659,163.57,163.53,21.4027]
[1730669003208,16.55120659,163.58,163.53,21.4027]
[1730669004700,16.55120659,163.57,163.53,21.4027]
[1730669005580,13.2920917,163.56,163.53,21.4027]
[1730669005789,16.55120659,163.57,163.53,15.2877]
[1730669006610,16.55120659,163.56,163.53,15.2877]
[1730669006981,23.776884,163.56,163.53,15.2877]
[1730669007983,16.55120659,163.57,163.53,15.2877]
[1730669008180,16.55120659,163.58,163.53,15.2877]
[1730669009201,16.55120659,163.59,163.53,31.83890659]
[1730669009387,23.776884,163.58,163.53,37.95390659]
[1730669009725,16.55120659,163.54,163.49,37.95820659]
[1730669009885,16.55120659,163.54,163.5,2.09616537]
[1730669010800,16.55120659,163.53,163.49,15.2905]
[1730669011513,14.52390764,163.52,163.49,15.2905]
[1730669011811,16.55120659,163.54,163.49,15.2905]
[1730669012404,16.55120659,163.53,163.49,15.2905]
[1730669012603,16.55120659,163.54,163.49,15.2905]
[1730669012918,16.55120659,163.53,163.49,21.407]
[1730669013283,6.23989,163.55,163.49,21.407]
[1730669013284,16.55120659,163.51,163.49,21.407]
[1730669013486,6.23989,163.55,163.48,0.0747037]
[1730669013487,16.55120659,163.5,163.48,0.0747037]
[1730669014698,16.55120659,163.51,163.48,21.4839037]
[1730669015102,16.55120659,163.52,163.48,15.3670037]
[1730669015296,16.55120659,163.51,163.48,15.3670037]
[1730669017220,12.7215,163.54,163.48,31.91821029]
[1730669017221,16.55120659,163.54,163.48,31.91821029]
[1730669017521,16.55120659,163.53,163.48,15.3670037]
[1730669018521,16.55120659,163.53,163.48,21.4839037]
[1730669019021,16.55120659,163.54,163.49,16.55120659]
[1730669019194,16.55120659,163.55,163.49,16.55120659]
[1730669019395,16.55120659,163.54,163.49,16.55120659]
[1730669019718,16.55120659,163.57,163.52,16.55120659]
[1730669019896,16.55120659,163.59,163.53,16.55120659]
[1730669020100,16.55120659,163.58,163.53,16.55120659]
[1730669020292,16.55120659,163.58,163.52,16.55120659]
[1730669020492,16.55120659,163.58,163.53,21.4027]
[1730669021700,16.55120659,163.57,163.53,21.4027]
[1730669021901,16.55120659,163.56,163.53,21.4027]
[1730669022212,16.55120659,163.55,163.53,21.4027]
[1730669022397,16.55120659,163.56,163.53,21.4027]
[1730669022715,16.55120659,163.56,163.53,15.2877]
[1730669023017,16.55120659,163.58,163.53,31.83890659]
[1730669023197,40.32809059,163.59,163.54,16.55120659]
[1730669023393,40.32809059,163.59,163.53,31.83890659]
[1730669023611,16.55120659,163.59,163.53,31.83890659]
[1730669024714,16.55120659,163.58,163.53,21.4027]
[1730669026433,16.67669659,163.59,163.53,31.83890659]
[1730669027301,16.55120659,163.59,163.53,31.83890659]
[1730669028524,16.55120659,163.58,163.53,21.4027]
[1730669030129,16.55120659,163.59,163.53,31.83890659]
[1730669030623,16.55120659,163.57,163.53,15.2877]
[1730669031721,16.55120659,163.57,163.5,20.0]
[1730669031722,16.55120659,163.54,163.5,21.4064]
[1730669032127,16.55120659,163.55,163.5,21.4064]
[1730669033440,16.55120659,163.53,163.5,15.2902]
[1730669033762,16.67669659,163.54,163.5,21.4064]
[1730669034249,22.3049,163.64,163.53,16.55120659]
[1730669034427,30.41710058,163.63,163.57,16.55120659]
[1730669034627,30.41710058,163.63,163.56,16.55120659]
[1730669034628,16.55120659,163.62,163.56,16.55120659]
[1730669035334,16.55120659,163.62,163.57,21.3974]
[1730669036537,40.32809059,163.61,163.57,21.3974]
[1730669036951,16.55120659,163.6,163.57,21.3974]
[1730669037138,40.32809059,163.61,163.57,21.3974]
[1730669037449,40.32809059,163.61,163.57,15.2839]
[1730669037649,16.55120659,163.62,163.57,31.83510659]
[1730669037849,16.55120659,163.63,163.57,31.83510659]
[1730669038940,16.55120659,163.63,163.57,37.94860659]
[1730669039641,16.55120659,163.62,163.57,21.3974]
[1730669039845,16.55120659,163.63,163.57,37.94860659]
[1730669041053,23.776884,163.64,163.59,16.55120659]
[1730669041360,16.55120659,163.62,163.57,21.3974]
[1730669041739,16.55120659,163.63,163.57,37.94860659]
[1730669042042,16.55120659,163.62,163.57,21.3974]
[1730669042238,23.776884,163.64,163.57,21.3974]
[1730669042239,16.55120659,163.61,163.57,21.3974]
[1730669042439,16.55120659,163.6,163.57,21.3974]
[1730669042760,16.55120659,163.58,163.54,15.2867]
[1730669043063,16.55120659,163.57,163.54,15.2867]
[1730669043247,6.23789,163.6,163.54,15.2867]
[1730669043248,16.55120659,163.56,163.54,15.2867]
[1730669043442,16.55120659,163.55,163.51,24.75596834]
[1730669043637,16.55120659,163.54,163.52,2.09399962]
[1730669043938,16.55120659,163.55,163.52,2.09399962]
[1730669044352,16.55120659,163.55,163.53,6.115]
[1730669044555,16.55120659,163.56,163.53,6.115]
[1730669045756,16.67669659,163.57,163.53,21.4027]
[1730669046241,16.55120659,163.56,163.53,21.4027]
[1730669046758,16.55120659,163.56,163.53,15.2877]
[1730669047746,16.55120659,163.57,163.53,15.2877]
[1730669047955,23.902374,163.57,163.53,15.2877]
[1730669048161,40.45358059,163.57,163.53,15.2877]
[1730669048372,40.32809059,163.57,163.53,15.2877]
[1730669048533,16.55120659,163.56,163.53,15.2877]
[1730669048854,16.55120659,163.54,163.5,30.581]
[1730669050349,16.55120659,163.54,163.49,21.4079]
[1730669050661,16.55120659,163.53,163.5,2.09865171]
[1730669051336,16.55120659,163.51,163.49,15.2914]
[1730669051657,85.5157,163.54,163.48,9.5499036]
[1730669051658,16.55120659,163.5,163.48,0.0747037]
[1730669051842,55.47058184,163.49,163.48,0.0747037]
[1730669052038,110.45358059,163.49,163.48,0.0747037]
[1730669052237,116.57008059,163.49,163.48,0.0747037]
[1730669052438,46.78748059,163.49,163.48,0.0747037]
[1730669052671,40.32809059,163.49,163.48,0.0747037]
[1730669052959,40.45358059,163.49,163.48,0.0747037]
[1730669054057,16.55120659,163.51,163.48,0.0747037]
[1730669054257,16.55120659,163.5,163.48,0.0747037]
[1730669054943,40.45358059,163.49,163.48,0.0747037]
[1730669056573,55.29380706,163.49,163.48,0.0747037]
[1730669056754,40.45358059,163.49,163.48,0.0747037]
[1730669057854,55.17467407,163.49,163.48,0.0747037]
[1730669058061,40.45358059,163.49,163.48,0.0747037]
[1730669058263,46.57008059,163.49,163.48,0.0747037]
[1730669058473,61.73675176,163.49,163.48,0.0747037]
[1730669058656,46.57008059,163.49,163.48,0.0747037]
[1730669059177,55.13237237,163.49,163.48,0.0747037]
[1730669059351,55.13548497,163.49,163.48,0.0747037]
[1730669059556,55.31560666,163.49,163.48,0.0747037]
[1730669059859,55.49723161,163.49,163.48,0.0747037]
[1730669060161,40.45358059,163.49,163.48,0.0747037]
[1730669060772,55.5564574,163.49,163.48,0.0747037]
[1730669060971,55.89820494,163.49,163.48,0.0747037]
[1730669061268,40.45358059,163.49,163.48,0.0747037]
[1730669062273,55.49250693,163.49,163.48,0.0747037]
[1730669062471,56.11793364,163.49,163.48,0.0747037]
[1730669062676,61.35000534,163.49,163.48,0.0747037]
[1730669062973,46.57008059,163.49,163.48,0.0747037]
[1730669064280,62.02413923,163.49,163.48,0.0747037]
[1730669064457,46.57008059,163.49,163.48,0.0747037]
[1730669065059,60.90311779,163.49,163.48,0.0747037]
[1730669065253,46.57008059,163.49,163.48,0.0747037]
[1730669065661,40.45358059,163.49,163.48,0.0747037]
[1730669065871,16.55120659,163.51,163.48,0.0747037]
[1730669066256,0.12549,163.5,163.48,0.0747037]
[1730669066668,16.55120659,163.53,163.48,0.0747037]
[1730669067153,70.0,163.57,163.48,16.62591029]
[1730669067154,30.93752195,163.54,163.48,16.62591029]
[1730669067363,76.1139,163.57,163.5,16.55120659]
[1730669067364,30.6717369,163.56,163.5,16.55120659]
[1730669067574,14.12053031,163.56,163.52,16.55120659]
[1730669067875,16.55120659,163.58,163.52,16.55120659]
[1730669068079,0.12549,163.56,163.51,16.55120659]
[1730669068773,23.902374,163.56,163.52,21.404]
[1730669069289,0.12549,163.54,163.52,21.404]
[1730669069462,16.67669659,163.54,163.52,21.404]
[1730669069776,0.12549,163.54,163.52,21.404]
[1730669069958,14.61032691,163.55,163.52,21.404]
[1730669070273,0.12549,163.55,163.52,21.404]
[1730669070468,14.60200884,163.55,163.52,15.2886]
[1730669070674,0.12549,163.55,163.52,15.2886]
[1730669070876,16.55120659,163.6,163.54,16.55120659]
[1730669071079,16.55120659,163.59,163.53,16.55120659]
[1730669071280,0.12549,163.57,163.53,16.55120659]
[1730669072082,16.55120659,163.58,163.53,16.55120659]
[1730669072283,0.12549,163.57,163.54,21.4014]
[1730669072978,0.12549,163.55,163.54,15.2867]
[1730669073355,0.12549,163.53,163.49,16.55120659]
[1730669073554,0.12549,163.53,163.5,15.2897]
[1730669075468,0.12549,163.51,163.5,15.2897]
[1730669075878,16.67669659,163.51,163.48,6.1915037]
[1730669076071,0.12549,163.49,163.48,6.1915037]
[1730669076787,0.12549,163.5,163.48,6.1915037]
[1730669076998,0.12549,163.5,163.48,0.0747037]
[1730669077287,40.45358059,163.49,163.48,0.0747037]
[1730669079471,55.15025958,163.49,163.48,0.0747037]
[1730669079675,40.45358059,163.49,163.48,0.0747037]
[1730669079869,54.99343071,163.49,163.48,0.0747037]
[1730669080188,16.55120659,163.51,163.48,0.0747037]
[1730669080391,0.12549,163.5,163.48,0.0747037]
[1730669080773,16.67669659,163.49,163.48,0.0747037]
[1730669081670,0.12549,163.49,163.48,0.0747037]
[1730669084189,24.39870635,163.64,163.48,0.0747037]
[1730669084190,16.55120659,163.59,163.5,16.0522]
[1730669084500,0.12549,163.58,163.53,16.55120659]
[1730669084693,0.12549,163.58,163.52,16.55120659]
[1730669084893,16.67669659,163.58,163.52,16.55120659]
[1730669085288,16.67669659,163.58,163.53,21.4027]
[1730669085693,23.776884,163.57,163.53,21.4027]
[1730669085902,0.12549,163.56,163.53,21.4027]
[1730669087309,0.12549,163.56,163.53,15.2877]
[1730669087897,0.12549,163.56,163.53,31.83890659]
[1730669089398,0.12549,163.56,163.53,37.95390659]
[1730669089893,0.12549,163.56,163.53,21.4027]
[1730669091394,0.12549,163.56,163.53,31.83890659]
[1730669091705,0.12549,163.58,163.53,31.83890659]
[1730669092510,23.902374,163.58,163.53,37.95390659]
[1730669093000,16.55120659,163.62,163.56,16.55120659]
[1730669093402,0.12549,163.6,163.56,16.55120659]
[1730669093903,16.67669659,163.61,163.55,16.55120659]
[1730669094206,23.776884,163.6,163.55,16.55120659]
[1730669094406,0.12549,163.59,163.55,16.55120659]
[1730669094706,0.12549,163.59,163.56,21.3988]
[1730669095212,0.12549,163.59,163.56,37.95000659]
[1730669097103,16.55120659,163.64,163.58,16.55120659]
[1730669097505,0.12549,163.63,163.58,16.55120659]
[1730669097986,0.12549,163.63,163.59,21.3949]
[1730669098723,16.55120659,163.65,163.59,37.94610659]
[1730669098917,16.55120659,163.66,163.6,16.55120659]
[1730669099724,0.12549,163.65,163.6,16.55120659]
[1730669099901,0.12549,163.65,163.62,16.55120659]
[1730669100212,0.12549,163.65,163.59,51.9591]
[1730669100213,0.2429821,163.68,163.63,37.94080659]
[1730669100724,0.12549,163.67,163.63,21.3896]
[1730669100901,16.67669659,163.67,163.63,21.3896]
[1730669101502,0.12549,163.67,163.63,21.3896]
[1730669101807,0.12549,163.65,163.63,15.2783]
[1730669102423,14.72774546,163.67,163.63,15.2783]
[1730669102618,0.12549,163.67,163.63,15.2783]
[1730669103016,40.57107269,163.68,163.63,15.2783]
[1730669103325,40.57107269,163.68,163.63,21.3896]
[1730669103522,0.12549,163.67,163.63,21.3896]
[1730669104230,0.2429821,163.68,163.64,16.55120659]
[1730669104411,0.2429821,163.68,163.64,36.55120659]
[1730669104608,0.2429821,163.68,163.67,16.55120659]
[1730669104813,0.2429821,163.68,163.67,36.55120659]
[1730669105523,0.2429821,163.68,163.67,42.66100659]
[1730669109516,0.2429821,163.68,163.67,42.76100659]
[1730669111232,8.21e-05,163.68,163.67,42.76100659]
[1730669111614,8.21e-05,163.68,163.67,67.85932315]
[1730669111839,8.21e-05,163.68,163.67,66.63789059]
[1730669112215,8.21e-05,163.68,163.67,66.53789059]
[1730669112516,8.21e-05,163.68,163.67,66.63789059]
[1730669112934,8.21e-05,163.68,163.67,66.53789059]
[1730669113120,8.21e-05,163.68,163.67,66.63789059]
[1730669115140,8.21e-05,163.68,163.67,66.43789059]
[1730669115313,8.21e-05,163.68,163.67,42.66100659]
[1730669115519,8.21e-05,163.68,163.67,42.76100659]
[1730669116635,8.21e-05,163.68,163.66,15.2751]
[1730669116819,8.21e-05,163.68,163.67,16.55120659]
[1730669117333,8.21e-05,163.68,163.67,24.08257182]
[1730669117645,8.21e-05,163.68,163.67,28.84230659]
[1730669117942,8.21e-05,163.68,163.67,26.1098]
[1730669118248,8.21e-05,163.68,163.67,36.55120659]
[1730669118425,8.21e-05,163.68,163.67,42.66100659]
[1730669118822,8.21e-05,163.68,163.67,42.86100659]
[1730669119017,8.21e-05,163.68,163.67,82.88809059]
[1730669120140,8.21e-05,163.68,163.67,58.91120659]
[1730669121146,8.21e-05,163.68,163.67,82.88809059]
[1730669122122,8.21e-05,163.68,163.67,84.2348683]
[1730669123730,8.21e-05,163.68,163.67,84.1348683]
[1730669123936,8.21e-05,163.68,163.67,83.01358059]
[1730669125740,0.3176858,163.77,163.7,0.1]
[1730669125930,0.3176858,163.77,163.74,16.55120659]
[1730669126137,0.3176858,163.77,163.73,16.55120659]
[1730669126340,22.97499239,163.77,163.71,16.55120659]
[1730669126542,16.86889239,163.77,163.72,20.0]
[1730669126737,0.3176858,163.77,163.72,36.55120659]
[1730669127631,16.86889239,163.77,163.73,6.1076]
[1730669127844,0.3176858,163.77,163.73,6.1076]
[1730669128554,0.12549,163.76,163.72,15.2694]
[1730669128736,0.12549,163.76,163.72,21.3773]
[1730669130340,0.12549,163.76,163.7,16.55120659]
[1730669130540,16.67669659,163.76,163.71,20.0]
[1730669130743,0.12549,163.76,163.71,20.0]
[1730669130948,0.3176858,163.77,163.75,16.55120659]
[1730669131157,0.3176858,163.77,163.71,36.65120659]
[1730669131158,0.3176858,163.77,163.76,16.55120659]
[1730669131359,0.3176858,163.77,163.75,16.55120659]
[1730669131546,0.3176858,163.77,163.75,20.0]
[1730669132441,0.3176858,163.77,163.76,6.1064]
[1730669133542,0.3176858,163.77,163.76,42.65760659]
[1730669133859,0.3176858,163.77,163.76,52.0322653]
[1730669134054,0.3176858,163.77,163.76,51.9322653]
[1730669134259,0.3176858,163.77,163.71,24.65762144]
[1730669134260,0.3176858,163.77,163.71,15.2702]
[1730669134461,0.3176858,163.77,163.67,0.1]
[1730669134462,0.3176858,163.77,163.68,0.2]
[1730669134641,0.3176858,163.77,163.71,16.55120659]
[1730669134842,0.3176858,163.77,163.73,16.55120659]
[1730669135360,0.3176858,163.77,163.72,16.55120659]
[1730669135563,0.3176858,163.77,163.73,20.0]
[1730669136068,0.3176858,163.77,163.73,26.1075]
[1730669136649,0.3176858,163.77,163.65,16.55120659]
[1730669136650,23.902374,163.73,163.65,16.55120659]
[1730669136849,0.12549,163.7,163.64,6.1107]
[1730669137357,93.902374,163.7,163.58,6.1129]
[1730669137767,23.902374,163.68,163.59,6.38663329]
[1730669137945,23.902374,163.68,163.61,16.55120659]
[1730669137946,0.12549,163.66,163.61,16.55120659]
[1730669138472,16.67669659,163.67,163.61,16.55120659]
[1730669138672,0.12549,163.67,163.61,16.55120659]
[1730669138851,0.12549,163.67,163.63,16.55120659]
[1730669139051,0.12549,163.69,163.63,16.55120659]
[1730669139773,21.6612,163.71,163.66,16.55120659]
[1730669140063,21.6612,163.71,163.67,16.55120659]
[1730669140449,21.6612,163.71,163.66,16.55120659]
[1730669140972,16.55120659,163.74,163.67,16.55120659]
[1730669141171,16.55120659,163.74,163.68,36.55120659]
[1730669141354,0.12549,163.73,163.68,20.0]
[1730669141851,0.12549,163.73,163.68,26.1093]
[1730669142051,16.55120659,163.74,163.68,57.93420659]
[1730669142259,38.21240659,163.75,163.69,16.55120659]
[1730669142566,0.12549,163.74,163.69,16.55120659]
[1730669142766,16.67669659,163.74,163.68,57.93420659]
[1730669143156,0.12549,163.72,163.68,41.383]
[1730669143675,0.12549,163.72,163.68,35.2737]
[1730669144048,0.12549,163.72,163.68,41.3831]
[1730669144580,16.67669659,163.74,163.68,57.93430659]
[1730669145177,0.12549,163.72,163.68,41.3831]
[1730669145353,16.67669659,163.72,163.68,15.2737]
[1730669145555,21.6612,163.75,163.71,16.55120659]
[1730669145770,0.3176858,163.77,163.69,20.0]
[1730669145771,0.3176858,163.77,163.72,16.55120659]
[1730669146069,0.12549,163.76,163.72,16.55120659]
[1730669146281,0.3176858,163.77,163.72,16.55120659]
[1730669147279,0.3176858,163.77,163.73,16.55120659]
[1730669147468,0.3176858,163.77,163.73,26.39432631]
[1730669147862,0.3176858,163.77,163.74,26.39432631]
[1730669148064,0.3176858,163.77,163.73,20.0]
[1730669148065,0.3176858,163.77,163.75,26.39432631]
[1730669148590,0.3176858,163.77,163.74,26.39432631]
[1730669149382,0.3176858,163.77,163.75,47.76822631]
[1730669150883,0.3176858,163.77,163.76,26.39432631]
[1730669151071,0.3176858,163.77,163.76,46.39432631]
[1730669151270,0.3176858,163.77,163.76,52.50072631]
[1730669153870,0.3176858,163.77,163.76,54.57945629]
[1730669154183,0.3176858,163.77,163.76,52.50072631]
[1730669161093,8.58e-05,163.77,163.76,76.60310031]
[1730669161285,8.58e-05,163.77,163.76,8.18227836]
[1730669161588,8.58e-05,163.77,163.71,29.48067061]
[1730669161589,8.58e-05,163.77,163.73,32.50152631]
[1730669161801,8.58e-05,163.77,163.74,26.39432631]
[1730669163171,8.58e-05,163.77,163.75,6.1068]
[1730669163470,8.58e-05,163.77,163.75,21.3739]
[1730669163873,8.58e-05,163.77,163.76,26.39432631]
[1730669164988,8.58e-05,163.77,163.76,32.50072631]
[1730669166174,8.58e-05,163.77,163.75,15.2671]
[1730669166393,8.58e-05,163.77,163.75,21.3739]
[1730669167601,8.58e-05,163.77,163.75,15.2671]
[1730669167800,8.58e-05,163.77,163.75,21.3739]
[1730669168090,26.39432631,163.76,163.71,21.3791]
[1730669168596,26.39432631,163.74,163.71,15.2708]
[1730669168801,48.48272631,163.76,163.71,21.3791]
[1730669168976,22.0884,163.76,163.71,47.77342631]
[1730669169175,8.58e-05,163.77,163.72,26.39432631]
[1730669169504,16.49882361,163.75,163.68,16.49882361]
[1730669169669,16.49882361,163.75,163.69,20.0]
[1730669169873,16.49882361,163.73,163.68,26.1094]
[1730669170091,16.49882361,163.73,163.68,41.3831]
[1730669170474,22.60642361,163.73,163.68,15.2737]
[1730669170679,16.49882361,163.72,163.68,15.2737]
[1730669170887,16.49882361,163.72,163.67,6.1097]
[1730669170888,16.62431361,163.71,163.65,6.38423414]
[1730669171075,16.49882361,163.69,163.65,14.57088649]
[1730669171285,16.49882361,163.69,163.65,6.1105]
[1730669171896,16.62431361,163.71,163.65,16.49882361]
[1730669172076,16.62431361,163.71,163.66,37.88432361]
[1730669172077,0.12549,163.71,163.66,37.88432361]
[1730669172274,6.4484,163.72,163.68,16.49882361]
[1730669172587,16.49882361,163.74,163.68,16.49882361]
[1730669173483,16.49882361,163.73,163.67,16.49882361]
[1730669173687,16.49882361,163.75,163.69,16.49882361]
[1730669174204,16.49882361,163.75,163.7,6.1087]
[1730669174406,38.58722361,163.76,163.7,37.87932361]
[1730669175188,22.0884,163.76,163.71,16.49882361]
[1730669176197,22.0884,163.76,163.71,22.60682361]
[1730669176403,12.02347121,163.75,163.71,6.108]
[1730669176600,44.69372361,163.76,163.71,6.108]
[1730669177310,16.49882361,163.75,163.7,21.3805]
[1730669177507,16.49882361,163.75,163.68,16.49882361]
[1730669177508,0.12549,163.73,163.68,16.49882361]
[1730669177707,22.0884,163.76,163.71,16.49882361]
[1730669178091,22.0884,163.76,163.72,16.49882361]
[1730669178401,22.0884,163.76,163.71,22.60692361]
[1730669178602,38.58722361,163.76,163.71,22.60692361]
[1730669178789,16.49882361,163.73,163.67,31.77332361]
[1730669178995,16.62431361,163.71,163.65,22.60922361]
[1730669179219,16.62431361,163.71,163.65,6.1104]
[1730669179220,16.49882361,163.7,163.65,6.1104]
[1730669180085,16.49882361,163.71,163.65,22.60922361]
[1730669180293,16.49882361,163.7,163.65,21.3869]
[1730669180488,16.62431361,163.71,163.65,37.88572361]
[1730669181407,16.49882361,163.68,163.64,6.1109]
[1730669181790,16.49882361,163.67,163.62,21.3907]
[1730669182099,16.49882361,163.66,163.62,15.2792]
[1730669182686,16.62431361,163.67,163.62,15.2792]
[1730669182887,16.62431361,163.67,163.62,21.3909]
[1730669183693,16.62431361,163.67,163.62,15.2792]
[1730669184402,22.73451361,163.67,163.62,15.2792]
[1730669184590,16.49882361,163.66,163.62,15.2792]
[1730669185914,6.23569,163.67,163.62,16.49882361]
[1730669186106,22.0486,163.68,163.59,30.5639]
[1730669186404,22.0486,163.72,163.66,16.49882361]
[1730669186783,38.54742361,163.72,163.66,16.49882361]
[1730669187207,22.0486,163.72,163.67,16.49882361]
[1730669187515,27.86632445,163.74,163.68,16.49882361]
[1730669188096,11.36750084,163.74,163.7,16.49882361]
[1730669188287,16.49882361,163.75,163.7,16.49882361]
[1730669188496,16.49882361,163.74,163.69,37.88062361]
[1730669188814,16.49882361,163.75,163.69,37.88062361]
[1730669189204,22.98732361,163.76,163.7,16.49882361]
[1730669190290,22.98732361,163.76,163.71,6.1083]
[1730669190715,22.98732361,163.76,163.7,16.49882361]
[1730669190716,16.62431361,163.75,163.7,16.49882361]
[1730669190899,16.62431361,163.75,163.7,22.60732361]
[1730669191103,16.62431361,163.75,163.7,6.1085]
[1730669191299,16.49882361,163.75,163.7,6.1085]
[1730669191498,16.49882361,163.75,163.7,21.3803]
[1730669191897,29.09382361,163.76,163.7,37.87912361]
[1730669192192,6.4885,163.76,163.71,16.49882361]
[1730669192695,28.07717176,163.78,163.73,16.49882361]
[1730669192890,16.49882361,163.77,163.71,16.49882361]
[1730669194002,16.49882361,163.77,163.72,6.1079]
[1730669194196,16.49882361,163.74,163.7,15.2718]
[1730669195103,16.49882361,163.73,163.67,16.49882361]
[1730669196021,23.776884,163.76,163.68,22.60822361]
[1730669196022,16.49882361,163.74,163.68,22.60822361]
[1730669196318,22.60572361,163.75,163.69,16.49882361]
[1730669197399,22.60572361,163.75,163.69,22.60772361]
[1730669197608,16.49882361,163.74,163.69,22.60772361]
[1730669197831,16.49882361,163.73,163.68,15.2737]
[1730669198006,16.49882361,163.74,163.68,37.88192361]
[1730669199526,28.77722361,163.75,163.69,16.49882361]
[1730669199905,16.49882361,163.77,163.71,16.49882361]
[1730669200218,22.60502361,163.77,163.71,16.49882361]
[1730669201027,22.60502361,163.77,163.71,22.60692361]
[1730669201208,16.49882361,163.77,163.71,22.60692361]
[1730669201525,16.3601,163.8,163.73,16.49882361]
[1730669201526,16.49882361,163.79,163.73,16.49882361]